bitfinex/quotes_BTCUSD_20250403
["timestamp","ask_amount","ask_price","bid_price","bid_amount"]
[1743706116911,0.243332,82192.0,82189.0,0.243341]
[1743706117059,0.34,82199.0,82192.0,0.24333]
[1743706117259,0.373592,82198.0,82193.0,0.012166]
[1743706117463,0.385757,82198.0,82191.0,0.012166]
[1743706117670,0.385757,82198.0,82193.0,0.243329]
[1743706117671,0.243317,82197.0,82193.0,0.243329]
[1743706117869,0.012166,82195.0,82174.0,0.00608664]
[1743706118086,0.012166,82194.0,82186.0,0.012167]
[1743706118246,0.243329,82193.0,82189.0,0.24334]
[1743706118447,0.243329,82193.0,82190.0,0.243338]
[1743706118755,0.012165,82198.0,82190.0,0.243338]
[1743706118756,0.012164,82204.0,82199.0,0.012165]
[1743706118997,0.012161,82225.0,82217.0,0.012162]
[1743706119210,0.255394,82226.0,82219.0,0.012162]
[1743706119407,0.38228797,82229.0,82221.0,0.012162]
[1743706119408,0.012161,82228.0,82221.0,0.012162]
[1743706119639,0.107814,82228.0,82221.0,0.012162]
[1743706119858,0.004,82229.0,82221.0,0.012162]
[1743706119859,0.004,82229.0,82228.0,0.012161]
[1743706120277,0.004,82229.0,82224.0,0.012161]
[1743706120477,0.012161,82228.0,82212.0,0.012163]
[1743706120678,0.012161,82227.0,82219.0,0.012162]
[1743706121100,0.012161,82226.0,82219.0,0.243252]
[1743706121237,0.012161,82227.0,82220.0,0.012162]
[1743706121625,0.012161,82227.0,82221.0,0.012162]
[1743706121833,0.00413793,82229.0,82223.0,0.255402]
[1743706122070,0.00413793,82229.0,82225.0,0.012161]
[1743706122269,0.00413793,82229.0,82226.0,0.243232]
[1743706122479,0.00413793,82229.0,82227.0,0.012161]
[1743706122866,0.00413793,82229.0,82225.0,0.012161]
[1743706123245,0.00413793,82229.0,82221.0,0.25313583]
[1743706123457,0.243226,82228.0,82221.0,0.00988983]
[1743706123744,0.255387,82228.0,82222.0,0.012162]
[1743706123920,0.012161,82228.0,82223.0,0.00380319]
[1743706124277,0.01629893,82229.0,82223.0,0.01596519]
[1743706124402,0.00413793,82229.0,82224.0,0.255398]
[1743706124605,0.00413793,82229.0,82228.0,0.255387]
[1743706125437,0.00413793,82229.0,82228.0,0.25919019]
[1743706125612,0.01629893,82229.0,82228.0,0.00380319]
[1743706125831,0.00413793,82229.0,82228.0,0.00380319]
[1743706126677,0.00413793,82229.0,82228.0,0.01596419]
[1743706126885,0.00413793,82229.0,82228.0,0.00380319]
[1743706127099,0.25952193,82229.0,82228.0,0.00380319]
[1743706127501,1.52678093,82229.0,82228.0,0.00380319]
[1743706127705,1.43135093,82229.0,82228.0,0.00380319]
[1743706127908,0.48972993,82229.0,82228.0,0.00380319]
[1743706128954,0.255398,82225.0,82219.0,0.24325]
[1743706129157,0.255398,82225.0,82218.0,0.012162]
[1743706129545,0.012162,82221.0,82213.0,0.243269]
[1743706129779,0.012162,82221.0,82214.0,0.243265]
[1743706129980,0.012162,82221.0,82215.0,0.243262]
[1743706130335,0.25541,82221.0,82215.0,0.243262]
[1743706130545,0.243234,82226.0,82220.0,0.243249]
[1743706130748,0.1,82236.0,82227.0,0.243226]
[1743706131083,0.1,82236.0,82222.0,0.243242]
[1743706131084,0.012161,82230.0,82222.0,0.243242]
[1743706131291,0.255382,82230.0,82224.0,0.243237]
[1743706131471,0.255382,82230.0,82224.0,0.255398]
[1743706131670,1.29872293,82229.0,82224.0,0.255398]
[1743706131880,0.012161,82228.0,82220.0,0.26764075]
[1743706132087,0.012161,82225.0,82219.0,0.00263289]
[1743706132299,0.243248,82221.0,82219.0,0.00263289]
[1743706132721,0.012162,82221.0,82219.0,0.00263289]
[1743706132915,0.255397,82225.0,82219.0,0.25804589]
[1743706133113,0.255404,82223.0,82219.0,0.00263289]
[1743706133335,0.243245,82222.0,82217.0,0.243257]
[1743706133513,0.243245,82222.0,82216.0,0.255422]
[1743706133514,0.243248,82221.0,82216.0,0.255422]
[1743706133717,0.243248,82221.0,82220.0,0.00380353]
[1743706133936,0.270974,82221.0,82220.0,0.00380353]
[1743706134160,0.243238,82224.0,82220.0,0.00380353]
[1743706134368,0.243245,82222.0,82220.0,0.00380353]
[1743706134567,2.53693297,82221.0,82220.0,0.00380353]
[1743706134739,2.53693297,82221.0,82201.0,0.01407182]
[1743706134740,0.012163,82211.0,82207.0,0.01024039]
[1743706134944,0.243285,82208.0,82207.0,0.01024039]
[1743706135290,0.255449,82208.0,82207.0,0.0076075]
[1743706135816,0.255449,82208.0,82207.0,0.00380414]
[1743706136660,0.012163,82210.0,82207.0,0.00380414]
[1743706136661,0.255445,82210.0,82207.0,0.00380414]
[1743706136865,0.012164,82208.0,82207.0,0.00380414]
[1743706137322,0.243284,82209.0,82207.0,0.00380414]
[1743706137500,0.243282,82211.0,82207.0,0.00380414]
[1743706137863,0.243273,82212.0,82208.0,0.243282]
[1743706138067,0.255434,82213.0,82207.0,0.25925514]
[1743706138349,0.243266,82215.0,82209.0,0.012164]
[1743706138571,0.6633839,82217.0,82210.0,0.012163]
[1743706138572,0.144849,82214.0,82210.0,0.012163]
[1743706138843,0.012163,82216.0,82211.0,0.243276]
[1743706139003,0.4804409,82217.0,82213.0,0.012163]
[1743706139207,0.34,82226.0,82222.0,0.012162]
[1743706139410,0.232416,82225.0,82224.0,0.012161]
[1743706139706,0.00413793,82229.0,82227.0,0.243229]
[1743706139908,0.255404,82223.0,82216.0,0.255423]
[1743706140111,0.255404,82223.0,82217.0,0.243256]
[1743706140353,0.5511939,82226.0,82219.0,0.012162]
[1743706140555,0.5633549,82226.0,82219.0,0.012162]
[1743706140779,0.243243,82223.0,82217.0,0.243256]
[1743706140901,0.255405,82223.0,82217.0,0.243257]
[1743706141100,0.255405,82223.0,82209.0,0.243281]
[1743706141101,0.243274,82212.0,82208.0,0.00263289]
[1743706141306,0.012164,82209.0,82208.0,0.00263289]
[1743706141730,0.217356,82209.0,82208.0,0.00263289]
[1743706142018,0.255442,82211.0,82208.0,0.00263289]
[1743706142227,0.4036,82210.0,82208.0,0.00263289]
[1743706142422,0.124619,82209.0,82208.0,0.00263289]
[1743706142648,0.124619,82209.0,82204.0,0.243295]
[1743706142825,0.367903,82209.0,82203.0,0.255462]
[1743706143027,0.251561,82208.0,82203.0,0.255462]
[1743706143220,0.215075,82208.0,82204.0,0.243295]
[1743706143479,0.104092,82209.0,82208.0,0.243285]
[1743706143685,0.347377,82212.0,82207.0,0.012164]
[1743706143980,0.104102,82211.0,82207.0,0.012164]
[1743706144190,0.104102,82211.0,82208.0,0.012164]
[1743706144404,0.34,82219.0,82214.0,0.012163]
[1743706144575,0.34,82219.0,82215.0,0.255426]
[1743706144993,0.3079609,82220.0,82217.0,0.243257]
[1743706145193,0.34,82223.0,82219.0,0.243252]
[1743706145391,0.355923,82222.0,82217.0,0.243256]
[1743706145593,0.243249,82221.0,82216.0,0.25922611]
[1743706145795,0.595404,82223.0,82217.0,0.243257]
[1743706145979,0.243245,82222.0,82217.0,0.012162]
[1743706146374,0.595404,82223.0,82218.0,0.243255]
[1743706146646,0.200831,82222.0,82218.0,0.243255]
[1743706146776,0.012162,82219.0,82216.0,0.00380411]
[1743706147144,0.243246,82221.0,82216.0,0.00380411]
[1743706147343,0.210431,82220.0,82216.0,0.24326]
[1743706147481,0.243252,82219.0,82214.0,0.255428]
[1743706147685,0.243253,82219.0,82214.0,0.255428]
[1743706147887,0.012163,82213.0,82207.0,0.012164]
[1743706148228,0.012163,82213.0,82202.0,0.00263289]
[1743706148229,0.243297,82204.0,82202.0,0.00263289]
[1743706148371,0.012165,82203.0,82202.0,0.00263289]
[1743706148775,0.012165,82203.0,82195.0,0.11018236]
[1743706148776,0.255466,82203.0,82195.0,0.11018236]
[1743706149017,0.255466,82203.0,82196.0,0.012166]
[1743706149240,0.255466,82203.0,82195.0,0.11018236]
[1743706149424,0.012165,82202.0,82195.0,0.11018236]
[1743706149633,0.012165,82200.0,82195.0,0.10827554]
[1743706149832,0.012166,82196.0,82195.0,0.10827554]
[1743706150040,1.61050097,82196.0,82195.0,0.10827554]
[1743706150255,0.26979397,82196.0,82195.0,0.10827554]
[1743706150454,0.129878,82196.0,82195.0,0.10827554]
[1743706150602,0.373198,82196.0,82195.0,0.10827554]
[1743706150798,0.255515,82187.0,82185.0,0.00190682]
[1743706151065,0.012166,82194.0,82185.0,0.00190682]
[1743706151066,0.012166,82193.0,82185.0,0.0019909]
[1743706151268,0.243323,82196.0,82192.0,0.255498]
[1743706151471,0.012166,82195.0,82190.0,0.243337]
[1743706151772,0.183328,82194.0,82190.0,0.243338]
[1743706152009,0.25549,82195.0,82191.0,0.243333]
[1743706152479,0.012166,82193.0,82186.0,0.24335]
[1743706152686,0.012167,82188.0,82185.0,8.408e-05]
[1743706152862,0.243348,82187.0,82185.0,8.408e-05]
[1743706153088,0.012167,82186.0,82185.0,8.408e-05]
[1743706154540,0.012167,82186.0,82185.0,0.00388916]
[1743706154747,0.255516,82187.0,82185.0,0.00388916]
[1743706155383,0.255514,82189.0,82185.0,0.00388916]
[1743706155577,0.243313,82199.0,82195.0,0.243321]
[1743706155810,0.012166,82196.0,82190.0,0.012166]
[1743706155994,0.243344,82188.0,82187.0,0.01223175]
[1743706156187,0.243342,82189.0,82187.0,0.01223175]
[1743706156404,0.012166,82193.0,82187.0,0.26774375]
[1743706156563,0.243333,82192.0,82189.0,0.24334]
[1743706156763,0.012166,82195.0,82188.0,0.255509]
[1743706156975,0.5512699,82200.0,82196.0,0.012166]
[1743706157197,0.394916,82199.0,82195.0,0.243317]
[1743706157436,0.243312,82199.0,82195.0,0.243317]
[1743706157635,0.243312,82199.0,82196.0,0.243319]
[1743706157932,0.377165,82198.0,82194.0,0.255491]
[1743706158137,0.225334,82197.0,82194.0,0.255491]
[1743706158676,0.225334,82197.0,82195.0,0.243321]
[1743706158835,0.240691,82198.0,82195.0,0.00380508]
[1743706159039,0.21965,82197.0,82195.0,0.00380508]
[1743706159239,0.21965,82198.0,82195.0,0.00380508]
[1743706159472,0.21965,82198.0,82196.0,0.0493]
[1743706159666,8e-05,82238.0,82223.0,0.012162]
[1743706159866,0.01216,82234.0,82228.0,0.012161]
[1743706160075,0.243219,82231.0,82225.0,0.255393]
[1743706160239,0.012161,82224.0,82219.0,0.243252]
[1743706160443,0.012161,82224.0,82204.0,0.364944]
[1743706160444,0.012164,82207.0,82203.0,0.0471]
[1743706160669,0.243285,82210.0,82201.0,0.243306]
[1743706160869,0.012163,82211.0,82202.0,0.243302]
[1743706160870,0.243295,82205.0,82202.0,0.243302]
[1743706161086,0.012164,82208.0,82203.0,0.243299]
[1743706161087,0.243288,82207.0,82203.0,0.243299]
[1743706161294,0.255445,82211.0,82206.0,0.243291]
[1743706161295,0.243281,82210.0,82206.0,0.243291]
[1743706161496,0.255444,82210.0,82206.0,0.243291]
[1743706161701,0.243286,82208.0,82204.0,0.25546]
[1743706162145,0.243286,82208.0,82204.0,0.25926434]
[1743706162375,0.25545,82208.0,82204.0,0.24710034]
[1743706162547,0.24329,82207.0,82204.0,0.24710034]
[1743706162687,0.243283,82209.0,82205.0,0.243293]
[1743706162890,0.012163,82215.0,82207.0,0.012164]
[1743706163138,0.012164,82207.0,82204.0,0.00380434]
[1743706163336,0.012164,82205.0,82204.0,0.00380434]
[1743706163773,0.012165,82201.0,82196.0,0.00263289]
[1743706163979,0.012165,82197.0,82196.0,0.00263289]
[1743706164716,0.255486,82196.0,82192.0,0.00190682]
[1743706164991,0.012166,82194.0,82187.0,0.01486464]
[1743706165193,0.012166,82194.0,82187.0,0.01494872]
[1743706165194,0.012167,82188.0,82187.0,0.01494872]
[1743706165398,0.302187,82188.0,82187.0,0.00271697]
[1743706165617,0.94992997,82188.0,82187.0,0.00271697]
[1743706166024,0.94992997,82188.0,82187.0,8.408e-05]
[1743706166506,0.99821012,82188.0,82187.0,8.408e-05]
[1743706166869,0.94992997,82188.0,82187.0,8.408e-05]
[1743706167283,0.81486,82188.0,82187.0,8.408e-05]
[1743706167521,0.18484,82188.0,82187.0,8.408e-05]
[1743706167897,0.243339,82190.0,82187.0,8.408e-05]
[1743706168097,0.243338,82191.0,82187.0,8.408e-05]
[1743706168300,0.255504,82191.0,82187.0,8.408e-05]
[1743706168517,0.24333,82193.0,82188.0,0.012167]
[1743706168807,0.243333,82192.0,82188.0,0.255508]
[1743706169367,0.243333,82192.0,82188.0,0.243341]
[1743706169572,0.243339,82190.0,82187.0,8.408e-05]
[1743706169776,0.243342,82189.0,82187.0,8.408e-05]
[1743706169981,0.012166,82191.0,82187.0,8.408e-05]
[1743706170199,0.243333,82192.0,82188.0,0.243342]
[1743706170406,0.255496,82193.0,82188.0,0.243342]
[1743706170592,1.05164,82199.0,82198.0,0.012165]
[1743706170799,0.3079609,82210.0,82205.0,0.012164]
[1743706171009,0.012165,82200.0,82193.0,0.012166]
[1743706171256,0.3079609,82203.0,82199.0,0.012165]
[1743706171429,0.012166,82196.0,82187.0,0.01225108]
[1743706171628,0.255506,82190.0,82187.0,8.408e-05]
[1743706171843,0.25551,82189.0,82187.0,8.408e-05]
[1743706172041,0.012166,82193.0,82189.0,0.24334]
[1743706172238,0.5512719,82200.0,82194.0,0.012166]
[1743706172450,0.34,82206.0,82200.0,0.012165]
[1743706172654,0.1,82207.0,82202.0,0.255467]
[1743706172982,0.012163,82211.0,82202.0,0.255467]
[1743706172983,0.243273,82212.0,82206.0,0.255455]
[1743706173130,0.243273,82212.0,82207.0,0.243287]
[1743706173336,0.3079609,82220.0,82211.0,0.012163]
[1743706173517,0.243248,82221.0,82216.0,0.243259]
[1743706174344,0.243255,82219.0,82214.0,0.012163]
[1743706174543,0.243255,82219.0,82214.0,0.255429]
[1743706174768,9.507e-05,82219.0,82215.0,0.012163]
[1743706175031,9.507e-05,82219.0,82216.0,0.243261]
[1743706175770,9.507e-05,82219.0,82215.0,0.02205343]
[1743706176217,9.507e-05,82219.0,82215.0,0.26531543]
[1743706176558,9.507e-05,82219.0,82218.0,0.058962]
[1743706176844,9.507e-05,82219.0,82218.0,0.07362583]
[1743706177042,9.507e-05,82219.0,82218.0,0.07119375]
[1743706177791,9.507e-05,82219.0,82218.0,0.07362585]
[1743706178063,9.507e-05,82219.0,82218.0,0.0911223]
[1743706178273,9.507e-05,82219.0,82218.0,0.21402527]
[1743706178558,9.507e-05,82219.0,82218.0,0.21159317]
[1743706180581,9.507e-05,82219.0,82218.0,0.21402523]
[1743706180793,9.507e-05,82219.0,82218.0,0.21159317]
[1743706181571,9.507e-05,82219.0,82218.0,0.20398651]
[1743706181771,9.507e-05,82219.0,82218.0,0.20641857]
[1743706182649,9.507e-05,82219.0,82218.0,0.20398651]
[1743706185835,9.507e-05,82219.0,82218.0,0.08108354]
[1743706187115,9.507e-05,82219.0,82218.0,0.00988979]
[1743706187991,0.25550907,82219.0,82218.0,0.00988979]
[1743706188398,9.507e-05,82219.0,82218.0,0.255417]
[1743706191539,9.507e-05,82219.0,82218.0,0.25922015]
[1743706191975,9.507e-05,82219.0,82218.0,0.42762312]
[1743706193053,9.507e-05,82219.0,82218.0,0.30472015]
[1743706193330,9.507e-05,82219.0,82218.0,0.25853408]
[1743706193471,9.507e-05,82219.0,82218.0,0.25784901]
[1743706193703,9.507e-05,82219.0,82218.0,0.25716741]
[1743706194574,9.507e-05,82219.0,82218.0,0.38007038]
[1743706196886,9.507e-05,82219.0,82218.0,0.40069656]
[1743706198414,7e-08,82219.0,82218.0,0.86699656]
[1743706198615,0.02,82235.0,82234.0,0.01216]
[1743706198616,1e-06,82235.0,82234.0,0.01216]
[1743706198821,1e-06,82235.0,82234.0,0.64045493]
[1743706199079,1e-06,82235.0,82234.0,0.63802357]
[1743706199999,1e-06,82235.0,82234.0,0.65551871]
[1743706200206,8e-05,82238.0,82237.0,0.255358]
[1743706200411,8e-05,82238.0,82237.0,0.37826097]
[1743706200611,8e-05,82238.0,82237.0,0.255358]
[1743706201774,8e-05,82238.0,82234.0,0.28509289]
[1743706202049,0.255365,82236.0,82234.0,0.01749514]
[1743706202293,0.01216,82235.0,82234.0,0.01749514]
[1743706202481,0.243276,82238.0,82235.0,0.00380315]
[1743706202680,8e-05,82238.0,82235.0,0.00380315]
[1743706202883,8e-05,82238.0,82236.0,0.243202]
[1743706203040,8e-05,82238.0,82235.0,0.25916815]
[1743706203236,8e-05,82238.0,82235.0,0.24700415]
[1743706203462,8e-05,82238.0,82235.0,0.24700715]
[1743706203671,8e-05,82238.0,82237.0,0.012159]
[1743706204425,8e-05,82238.0,82237.0,0.13749355]
[1743706204758,8e-05,82238.0,82237.0,0.13506197]
[1743706205167,8e-05,82238.0,82237.0,0.059059]
[1743706205378,8e-05,82238.0,82237.0,0.18439355]
[1743706206094,8e-05,82238.0,82237.0,0.1989344]
[1743706206320,8e-05,82238.0,82237.0,0.21642753]
[1743706207575,8e-05,82238.0,82237.0,0.45962653]
[1743706207730,0.02,82252.0,82251.0,0.26985585]
[1743706207937,0.02045999,82252.0,82251.0,0.39275882]
[1743706208542,9.9e-07,82252.0,82251.0,0.73275882]
[1743706208758,9.9e-07,82252.0,82251.0,0.84239057]
[1743706209419,9.9e-07,82252.0,82251.0,0.39044972]
[1743706209886,9.9e-07,82252.0,82251.0,0.40033619]
[1743706210086,0.25531299,82252.0,82251.0,0.01749313]
[1743706210706,9.9e-07,82252.0,82251.0,0.26065113]
[1743706210904,9.9e-07,82252.0,82251.0,0.3957111]
[1743706211597,9.9e-07,82252.0,82251.0,0.38810444]
[1743706212308,9.9e-07,82252.0,82251.0,0.45134529]
[1743706213087,9.9e-07,82252.0,82251.0,0.46036742]
[1743706213288,9.9e-07,82252.0,82251.0,0.46797408]
[1743706214682,9.9e-07,82252.0,82251.0,0.80797408]
[1743706215670,9.9e-07,82257.0,82256.0,0.5953]
[1743706215939,8.4e-07,82257.0,82256.0,0.74497557]
[1743706216170,8.4e-07,82257.0,82256.0,0.79437557]
[1743706216502,0.01248,82281.0,82280.0,0.255225]
[1743706216851,0.01248,82281.0,82280.0,0.26745675]
[1743706217375,0.012154,82276.0,82271.0,0.243098]
[1743706217566,0.01248,82281.0,82273.0,0.012154]
[1743706217783,0.24308,82278.0,82273.0,0.012154]
[1743706217990,0.243074,82280.0,82275.0,0.243087]
[1743706218191,0.255265,82267.0,82252.0,0.01223175]
[1743706218330,0.255265,82267.0,82261.0,0.01223175]
[1743706218524,0.255265,82267.0,82263.0,0.10720823]
[1743706218770,0.255274,82264.0,82263.0,0.10720823]
[1743706219156,0.012154,82275.0,82264.0,0.012155]
[1743706219365,0.243107,82269.0,82265.0,0.243116]
[1743706219672,0.243114,82266.0,82263.0,0.11100988]
[1743706219849,0.24311,82267.0,82263.0,0.11100988]
[1743706220052,0.243088,82275.0,82270.0,0.012155]
[1743706220350,0.01248,82281.0,82270.0,0.012155]
[1743706220351,0.243084,82276.0,82271.0,0.255251]
[1743706220533,0.012154,82277.0,82270.0,0.01223175]
[1743706220740,0.243099,82271.0,82270.0,0.01223175]
[1743706220939,0.243087,82275.0,82270.0,0.01223175]
[1743706221153,0.243099,82271.0,82270.0,0.01223175]
[1743706221753,0.17928,82304.0,82270.0,0.01223175]
[1743706221974,0.255221,82282.0,82273.0,0.243092]
[1743706222232,0.243061,82284.0,82275.0,0.012154]
[1743706222480,0.243077,82279.0,82274.0,0.00243069]
[1743706222744,0.243077,82279.0,82273.0,0.012154]
[1743706222937,0.243079,82278.0,82275.0,0.243086]
[1743706223145,0.01248,82281.0,82277.0,0.012154]
[1743706223272,0.01248,82281.0,82279.0,0.243073]
[1743706223482,0.01248,82281.0,82279.0,0.25530475]
[1743706224166,0.01248,82281.0,82279.0,0.01223175]
[1743706224728,0.01248,82281.0,82279.0,0.26745875]
[1743706225167,0.01248,82281.0,82280.0,0.02203535]
[1743706226871,0.01248,82281.0,82280.0,0.02963621]
[1743706227076,0.01248,82281.0,82280.0,0.03206671]
[1743706227276,0.012151,82296.0,82291.0,0.012151]
[1743706227540,0.00013783,82294.0,82293.0,0.255184]
[1743706227779,0.00013783,82294.0,82291.0,0.01223175]
[1743706227957,0.243034,82293.0,82291.0,0.01223175]
[1743706228341,0.00013783,82294.0,82291.0,0.01223175]
[1743706228609,0.00013783,82294.0,82292.0,0.25291835]
[1743706228847,0.25532083,82294.0,82292.0,0.00988235]
[1743706229081,0.00013783,82294.0,82292.0,0.00988235]
[1743706229285,0.00013783,82294.0,82292.0,0.25291835]
[1743706229687,0.24316883,82294.0,82292.0,0.00988235]
[1743706229997,0.012151,82293.0,82292.0,0.00988235]
[1743706230131,0.255187,82292.0,82291.0,0.01223175]
[1743706230530,0.00013783,82294.0,82291.0,0.01223175]
[1743706230766,0.00013783,82294.0,82293.0,0.255185]
[1743706230961,0.00013783,82294.0,82292.0,0.012151]
[1743706230962,0.00013783,82294.0,82291.0,0.01223175]
[1743706231122,0.24316883,82294.0,82291.0,0.01223175]
[1743706231319,0.243035,82293.0,82291.0,0.01223175]
[1743706231521,0.243035,82293.0,82292.0,0.00945342]
[1743706231722,0.00013783,82294.0,82292.0,0.00945342]
[1743706231921,0.255187,82292.0,82291.0,0.01223175]
[1743706232384,0.255187,82292.0,82291.0,0.02004595]
[1743706232763,0.243036,82292.0,82291.0,0.02004595]
[1743706233083,0.00013783,82294.0,82291.0,0.02992673]
[1743706233285,0.01228883,82294.0,82291.0,0.02992673]
[1743706233626,0.243036,82292.0,82291.0,0.02992673]
[1743706234458,0.00013783,82294.0,82293.0,0.012151]
[1743706234654,0.00013783,82294.0,82293.0,0.26541486]
[1743706234890,0.00013783,82294.0,82293.0,0.26298483]
[1743706236396,0.00013783,82294.0,82293.0,0.28046528]
[1743706238425,0.24299,82308.0,82304.0,0.243001]
[1743706238630,0.012149,82308.0,82302.0,0.255156]
[1743706238830,0.25514,82308.0,82305.0,0.00768291]
[1743706238982,0.25513,82311.0,82304.0,0.01215]
[1743706238983,0.34,82311.0,82304.0,0.01215]
[1743706239183,4.04e-05,82314.0,82312.0,0.255125]
[1743706239397,4.04e-05,82314.0,82313.0,0.012148]
[1743706239608,4.04e-05,82314.0,82313.0,0.01983091]
[1743706239963,4.04e-05,82314.0,82313.0,0.02226029]
[1743706240380,4.04e-05,82314.0,82313.0,0.14516326]
[1743706240583,4.04e-05,82314.0,82313.0,0.16264371]
[1743706241704,0.5508569,82340.0,82334.0,0.012145]
[1743706241925,0.242904,82337.0,82335.0,0.00757741]
[1743706242128,0.242904,82337.0,82331.0,0.255066]
[1743706242129,0.255049,82337.0,82331.0,0.242919]
[1743706242325,0.012145,82337.0,82332.0,0.25049341]
[1743706242620,0.012145,82337.0,82332.0,0.00757741]
[1743706242621,0.242909,82336.0,82332.0,0.00757741]
[1743706242776,0.30842043,82340.0,82332.0,0.26263841]
[1743706242978,0.00760353,82341.0,82335.0,0.012145]
[1743706243188,0.00013774,82341.0,82337.0,0.255046]
[1743706243611,0.255041,82340.0,82338.0,0.00738724]
[1743706243809,0.2779,82339.0,82338.0,0.00738724]
[1743706244010,0.2779,82339.0,82336.0,0.00260697]
[1743706244211,0.497445,82337.0,82336.0,9.7e-07]
[1743706244464,0.255154,82303.0,82302.0,0.02279775]
[1743706244922,0.255154,82303.0,82292.0,0.012151]
[1743706244923,0.243019,82298.0,82294.0,0.012151]
[1743706245141,0.255174,82297.0,82295.0,0.00577633]
[1743706245402,0.243023,82297.0,82293.0,0.243033]
[1743706245536,0.243011,82301.0,82296.0,0.24879933]
[1743706245738,0.198229,82309.0,82299.0,0.255166]
[1743706245943,0.255141,82308.0,82304.0,0.243001]
[1743706246147,0.242997,82306.0,82305.0,0.00577633]
[1743706246348,0.255146,82306.0,82305.0,0.00577633]
[1743706246551,0.243022,82297.0,82296.0,0.00045953]
[1743706246752,0.01215,82298.0,82296.0,0.00623586]
[1743706247070,0.25517,82298.0,82296.0,0.00623586]
[1743706247254,0.01215,82299.0,82296.0,0.00623586]
[1743706247651,0.242998,82305.0,82298.0,0.01215]
[1743706247877,0.243001,82304.0,82300.0,0.01215]
[1743706248079,0.243001,82304.0,82301.0,0.00577633]
[1743706248280,0.243001,82304.0,82299.0,0.01215]
[1743706248479,0.243001,82304.0,82300.0,0.00577633]
[1743706248678,0.243001,82304.0,82300.0,0.24878833]
[1743706248882,0.255147,82306.0,82301.0,0.243007]
[1743706249254,0.242989,82308.0,82303.0,0.255154]
[1743706249452,1.05016,82317.0,82306.0,0.012149]
[1743706249665,0.242976,82313.0,82309.0,0.255133]
[1743706249780,0.242982,82311.0,82304.0,0.01215]
[1743706249984,0.242999,82305.0,82301.0,0.00379999]
[1743706250185,0.243007,82302.0,82301.0,0.00379999]
[1743706250392,0.255157,82302.0,82301.0,0.00379999]
[1743706251043,0.255157,82302.0,82296.0,0.00045953]
[1743706251044,0.695185,82293.0,82292.0,0.00252]
[1743706251240,0.255213,82284.0,82283.0,0.00260216]
[1743706251441,0.702894,82284.0,82283.0,0.00260216]
[1743706251639,0.552664,82284.0,82283.0,0.00260216]
[1743706252007,0.479406,82284.0,82283.0,0.00260216]
[1743706252213,0.255194,82290.0,82280.0,0.24504103]
[1743706252420,0.243057,82285.0,82281.0,0.00243058]
[1743706252619,0.243061,82284.0,82281.0,0.243066]
[1743706252915,0.243061,82284.0,82282.0,0.00544168]
[1743706253119,0.255209,82285.0,82280.0,0.24320983]
[1743706253340,0.243066,82282.0,82281.0,0.00544168]
[1743706253588,0.17160297,82302.0,82280.0,0.01229083]
[1743706253836,0.255185,82293.0,82287.0,0.243049]
[1743706254053,0.243044,82290.0,82285.0,0.255207]
[1743706254256,0.243044,82290.0,82288.0,0.00544168]
[1743706254411,0.24305,82288.0,82284.0,0.243058]
[1743706255005,0.243047,82289.0,82284.0,0.255211]
[1743706255212,0.243047,82289.0,82285.0,0.243056]
[1743706255528,0.243046,82289.0,82285.0,0.243057]
[1743706255766,0.243036,82293.0,82287.0,0.012152]
[1743706256150,0.243023,82297.0,82293.0,0.243033]
[1743706256360,0.01215,82298.0,82289.0,0.243045]
[1743706256479,0.01215,82298.0,82290.0,0.00243027]
[1743706256700,0.01215,82302.0,82295.0,0.012151]
[1743706256901,0.012148,82314.0,82296.0,0.12533313]
[1743706257105,0.255129,82311.0,82302.0,0.01215]
[1743706257347,0.012148,82312.0,82307.0,0.242991]
[1743706257688,0.012148,82314.0,82305.0,0.012149]
[1743706257689,0.242987,82309.0,82305.0,0.242997]
[1743706257884,0.24298,82311.0,82305.0,0.255146]
[1743706258167,0.24298,82311.0,82306.0,0.012149]
[1743706258386,0.24298,82311.0,82303.0,0.12290297]
[1743706258387,0.01215,82304.0,82292.0,0.01223175]
[1743706258595,0.01215,82304.0,82283.0,0.0474]
[1743706258596,0.243014,82300.0,82296.0,0.012151]
[1743706258799,0.243017,82299.0,82294.0,0.255181]
[1743706259005,0.243017,82299.0,82294.0,0.24303]
[1743706259140,0.24302,82298.0,82294.0,0.24303]
[1743706259344,0.012151,82294.0,82289.0,0.00607914]
[1743706259549,0.01215,82299.0,82291.0,0.243039]
[1743706259747,0.255171,82298.0,82293.0,0.012151]
[1743706259955,0.243014,82300.0,82295.0,0.012151]
[1743706260189,0.01215,82301.0,82297.0,0.243021]
[1743706260395,0.01215,82298.0,82293.0,0.25526275]
[1743706260590,0.255161,82301.0,82298.0,0.00529211]
[1743706260808,0.243011,82301.0,82298.0,0.243018]
[1743706261004,0.243011,82301.0,82299.0,0.00529211]
[1743706261228,0.01215,82302.0,82299.0,0.00529211]
[1743706261352,0.01215,82301.0,82296.0,0.243023]
[1743706261555,0.25514,82308.0,82298.0,0.243019]
[1743706261759,0.24299,82308.0,82303.0,0.243001]
[1743706261953,0.242993,82307.0,82304.0,0.00529211]
[1743706262361,0.242993,82307.0,82303.0,0.243001]
[1743706262561,0.242993,82307.0,82304.0,0.00529211]
[1743706262819,0.242994,82307.0,82303.0,0.243001]
[1743706263007,0.012149,82309.0,82304.0,0.255149]
[1743706263205,0.012149,82309.0,82302.0,0.01215]
[1743706263206,0.242989,82308.0,82303.0,0.243003]
[1743706263414,0.255138,82308.0,82303.0,0.243003]
[1743706263615,0.242993,82307.0,82304.0,0.00529211]
[1743706263844,0.012149,82311.0,82305.0,0.012149]
[1743706263985,0.012149,82311.0,82304.0,0.24829211]
[1743706263986,0.012149,82306.0,82304.0,0.00529211]
[1743706264185,0.012149,82306.0,82293.0,0.012151]
[1743706264186,0.255145,82306.0,82302.0,0.243006]
[1743706264439,0.242991,82308.0,82303.0,0.243002]
[1743706264673,0.242991,82308.0,82305.0,0.00379961]
[1743706264875,0.242993,82307.0,82305.0,0.00379961]
[1743706265079,0.10098107,82306.0,82305.0,0.00379961]
[1743706265559,0.012149,82306.0,82305.0,0.00379961]